[Event "The American Cup | Group A 2023"]
[Site "Chess.com"]
[Date "2023.03.17"]
[Round "1"]
[White "Nakamura, Hikaru"]
[Black "Sevian, Samuel"]
[Result "1-0"]
[WhiteElo "2768"]
[BlackElo "2687"]
[ECO "C77"]
[EventDate "2023.??.??"]
[Annotator "rafael"]
[PlyCount "103"]
[Beauty "6872081895945"]
[EventType "schev"]
[EventRounds "3"]
[TimeControl "5400+30"]

1.e4 e5 2.Nf3 Nc6 3.Bb5 a6 4.Ba4 Nf6 5.d3 d6 6.c4 {One of many possible variations for White on the Ruy Lopez with an early d3.} 6...Bg4 ( 6...g6 {is the most popular move and, judging by what happened in this game, is the most reliable.} ) 7.h3 Bxf3 8.Qxf3 Nd7 9.Be3 Be7 10.Nc3 Nf8 {A move that seems quite logical, taking the knight to e6. However, this position is yet another case that when in doubt, castling is best.} ( 10...O-O $1 {[%c_effect g8;square;g8;type;GreatFind;persistent;true]} ) 11.Ne2 $1 {[%c_effect e2;square;e2;type;GreatFind;persistent;true] A strong new move, almost certainly discovered by Nakamura over the board and not as a result of home preparation. White is ready to play d3-d4 and will get a comfortable advantage.} ( 11.Nd5 Ne6 12.Nb4 Qd7 13.Nxc6 bxc6 {This gave no particular advantage in Bokros-Brunello, Antalya 2017.} ) 11...Ne6 12.d4 exd4 13.Nxd4 Nxd4 14.Bxd4 O-O 15.Bxc6 bxc6 16.Rd1 {White's advantage is not decisive, far from it, but it's the kind of position that grandmasters love. A pressure \"for free\" without risks. The worst that can happen, if Black defends very well, is a draw. Based on this, we can say that the opening was a success for Nakamura. The advantage is due to what will be the main strategic theme throughout the game: pawn structure. For now, White has a space advantage and a more compact structure with only two islands.} 16...Re8 ( 16...Bf6 {This leads to an endgame similar to what we see later.} 17.Bxf6 Qxf6 18.Qxf6 gxf6 {White has a small advantage.} ) 17.O-O Bf6 {During my analysis I looked for alternatives, but it's very likely that Sevian's move is really the best.} ( 17...Bf8 18.e5 Qd7 {This is also possible, although White keeps the pressure.} ) ( 17...Qc8 18.e5 c5 19.Bc3 Bf8 20.Rfe1 {with a clear positional plus.} ) 18.c5 $1 {[%c_effect c5;square;c5;type;GreatFind;persistent;true] More accurate than the immediate exchange on f6.} ( 18.Bxf6 Qxf6 19.Qxf6 gxf6 {The e4-pawn is threatened, and Black can play Re5 next.} ) 18...Re6 ( 18...Bxd4 {is also possible. It's very hard to evaluate which defensive option is the best.} 19.Rxd4 Re6 20.Rc1 {White is better in this heavy-piece endgame.} ) 19.Bxf6 Qxf6 20.Qxf6 gxf6 $6 {[%c_effect f6;square;f6;type;Inaccuracy;persistent;true] This one I really don't like, although I'm certainly biased by what will happen later in the game.} ( 20...Rxf6 21.f3 Kf8 {I think this gives better chances of defending, as there are fewer weaknesses.} ) 21.f3 Rb8 22.Rf2 Rb5 $2 {[%c_effect b5;square;b5;type;Mistake;persistent;true] The situation gets more serious after this mistake. Better chances are given by} ( 22...dxc5 $1 {[%c_effect c5;square;c5;type;GreatFind;persistent;true] The structure is not very good looking, I admit, but it's not clear what's the best way for White to exploit it, for instance:} 23.Rc1 Rb5 24.Rc4 Rd6 25.Rfc2 a5 $1 {[%c_effect a5;square;a5;type;GreatFind;persistent;true]} 26.Kf2 Rd4 27.b3 a4 $1 {[%c_effect a4;square;a4;type;GreatFind;persistent;true] and suddenly Black has some counterplay.} ) 23.Rc2 $1 {[%c_effect c2;square;c2;type;GreatFind;persistent;true]} 23...dxc5 24.Rd7 Rd6 25.Rxc7 {With such a horrible pawn structure, I think it's safe to say that Black is already lost.} 25...c4 26.Kf2 Rb6 27.Ke3 Kg7 28.Ra7 $1 {[%c_effect a7;square;a7;type;GreatFind;persistent;true] Nakamura plays with computer precision. This move enslaves the black rook and guarantees a possible plan with a2-a4.} 28...Rd3+ 29.Kf4 Rd4 30.h4 $1 {[%c_effect h4;square;h4;type;GreatFind;persistent;true] There's no reason to rush, as there's no counterplay for Black. Advancing the kingside pawns is a good idea.} 30...Kg6 31.h5+ Kg7 ( 31...Kxh5 32.Ra8 $1 {[%c_effect a8;square;a8;type;GreatFind;persistent;true] The nicest way to win. The rook goes to g8, and the king is in a mating net.} ( 32.Kf5 {This simple move is also good.} ) ) 32.Ra8 ( 32.h6+ {is also enough for a win.} 32...Kxh6 ( 32...Kg6 33.Ra8 $1 {[%c_effect a8;square;a8;type;GreatFind;persistent;true]} ) 33.Rxf7 Kg6 34.Ra7 {White's plan is to play g4 followed by Rh2.} ) 32...h6 33.a4 $1 {[%c_effect a4;square;a4;type;GreatFind;persistent;true]} 33...c5 34.a5 Rc6 35.Rb8 Kh7 {The rook is ready to go to b6.} 36.Ke3 Kg7 37.Ke2 {The point of this king withdrawal becomes clear in a moment.} 37...Re6 ( 37...f5 {is a desperate attempt to get some counterplay, but it's not enough. White is winning easily after} 38.exf5 Kf6 39.g4 ) 38.g4 Rc6 39.Rd2 $1 {[%c_effect d2;square;d2;type;GreatFind;persistent;true] This is the point. White plays without prejudice: the rooks will be exchanged, and this theoretically improves Black's structure, but in chess, calculation takes precedence over aesthetics.} 39...Rc7 40.Rb6 Rcd7 41.Rxd4 cxd4 42.Rxa6 {White wins a pawn, but not only that: the horrible structure on the kingside means the king cannot move. This will be exploited, and Black will soon find himself in zugzwang. This term is very well known in chess and signifies a situation in which every possible move worsens your position. You would prefer to pass, something that is not allowed in chess. I never get tired of admiring the genius of those who create and improve the rules of our beloved game.} 42...Rc7 43.Rd6 Rb7 ( 43...c3 44.bxc3 dxc3 45.Kd1 c2+ 46.Kc1 Ra7 47.a6 Rc7 48.Rd3 Ra7 49.Ra3 {The c2-pawn falls and White wins.} ) 44.Rb6 Rc7 45.a6 c3 46.bxc3 Rxc3 ( 46...dxc3 47.Kd1 ) 47.a7 Ra3 48.Rb7 {That's it: zugzwang is approaching. The king cannot move, either to a check on b8 or because the f7-pawn falls. If the rook leaves the third rank, then White's king advances.} 48...Re3+ 49.Kd2 Ra3 50.Rc7 f5 ( 50...d3 51.Rb7 ) 51.e5 fxg4 52.fxg4 {A game played perfectly by Nakamura that serves as a didactic model for the topic of pawn structure.} 1-0

[Event "The American Cup | Group A 2023"]
[Site "Chess.com"]
[Date "2023.03.19"]
[Round "1"]
[White "Aronian, Levon"]
[Black "Sevian, Samuel"]
[Result "1-0"]
[WhiteElo "2745"]
[BlackElo "2687"]
[ECO "C77"]
[EventDate "2023.??.??"]
[Annotator "rafael"]
[PlyCount "89"]
[Beauty "7355399945818"]
[EventType "schev"]
[EventRounds "3"]
[TimeControl "5400+30"]

1.e4 e5 2.Nf3 Nc6 3.Bb5 a6 4.Ba4 Nf6 5.d3 Bc5 6.c3 b5 7.Bb3 ( 7.Bc2 {Returning the bishop to this square is also possible. In this case, Black usually takes the opportunity to play in the center.} 7...d5 $1 {[%c_effect d5;square;d5;type;GreatFind;persistent;true]} ) 7...d6 8.Bg5 {This is a treacherous move. White invites the opponent to play the classic plan with h6-g5, leading to a sharp position.} 8...h6 9.Bh4 Bd7 {A rare choice. Two of the best chess players in the world decided to move the dark-squared bishop in this position, but they played it on different squares.} ( 9...Bb6 {This was Carlsen's choice, but he was worse after} 10.a4 Rb8 11.axb5 axb5 12.Na3 g5 13.Bg3 Na5 14.Bc2 b4 $6 {[%c_effect b4;square;b4;type;Inaccuracy;persistent;true]} 15.cxb4 Nc6 16.Ba4 {Praggnanandhaa-Carlsen, Chessable Masters 2022.} ) ( 9...Ba7 {This was played in the Candidates Tournament.} 10.O-O Na5 11.Bc2 c5 12.Nbd2 g5 13.Bg3 Nh5 {with a complicated position that resulted in an important win for Black in Rapport-Ding, Candidates Tournament Madrid 2022.} ) 10.Nbd2 Qe7 11.O-O ( 11.Nf1 {was the choice of a big expert in the Spanish Opening. After} 11...g5 12.Bg3 Nh5 13.Ne3 Bxe3 14.fxe3 Nxg3 15.hxg3 Na5 16.Bc2 c5 17.Qd2 {The position was even in Adams-Anton Guijarro, Heraklion 2017.} ) 11...g5 12.Bg3 Bb6 {A new move, although the bishop retreat is necessary sooner or later.} ( 12...O-O 13.Re1 Bb6 14.d4 {was played in Sirosh-Sinitsina, Viljandi Raud Memorial 2022.} ) 13.a4 {A typical move in the Spanish, opening the a-file.} 13...Rb8 14.axb5 axb5 15.Re1 {These positions are difficult to play for both sides. Here, for example, Black has a dilemma: should he advance the kingside or castle $2 Apparently we have yet another case of the \"when in doubt, just castle\" principle.} 15...h5 $6 {[%c_effect h5;square;h5;type;Inaccuracy;persistent;true]} ( 15...Nh5 $2 {[%c_effect h5;square;h5;type;Mistake;persistent;true] This is a blunder:} 16.Nxe5 $1 {[%c_effect e5;square;e5;type;GreatFind;persistent;true]} ) ( 15...O-O $1 {[%c_effect g8;square;g8;type;GreatFind;persistent;true]} 16.d4 {with a double-edged position.} ( 16.Nf1 {is also possible.} ) ) 16.h4 g4 17.Nh2 $1 {[%c_effect h2;square;h2;type;GreatFind;persistent;true] The right square. Sometimes you have to go back before going forward.} ( 17.Ng5 $6 {[%c_effect g5;square;g5;type;Inaccuracy;persistent;true] The knight is not very safe on this square. There is always the possibility of Black moving the knight from f6 and placing a pawn on that square, fatally attacking the adventurous white knight. However, patience is necessary: attempting to hastily apply the plan of attack to the knight can have serious consequences. Let's see:} 17...Nd8 $6 {[%c_effect d8;square;d8;type;Inaccuracy;persistent;true]} ( 17...O-O $1 {[%c_effect g8;square;g8;type;GreatFind;persistent;true] is the best, with a good position for Black.} ) 18.d4 Ng8 19.Nf1 $1 {[%c_effect f1;square;f1;type;GreatFind;persistent;true]} 19...f6 20.Ne3 $1 {[%c_effect e3;square;e3;type;GreatFind;persistent;true]} 20...fxg5 21.Nf5 {White gets monstrous compensation for the lost piece.} 21...Qf6 22.dxe5 dxe5 23.hxg5 Qxg5 24.Bh4 Qg6 25.Qd5 ) 17...Nh7 $6 {[%c_effect h7;square;h7;type;Inaccuracy;persistent;true]} ( 17...Be6 {is better, with only a small advantage for White after} 18.Nhf1 O-O 19.Ne3 Qd7 ) 18.Nhf1 Nf8 19.Ne3 Bxe3 20.fxe3 $1 {[%c_effect e3;square;e3;type;GreatFind;persistent;true] Reinforcing the center and opening the f-column.} 20...Ng6 21.Rf1 Be6 ( 21...O-O $2 {[%c_effect g8;square;g8;type;Mistake;persistent;true]} 22.Rf5 $1 {[%c_effect f5;square;f5;type;GreatFind;persistent;true] This is a beautiful and didactic exchange sacrifice.} 22...Bxf5 23.exf5 Nh8 ( 23...Nxh4 24.Qf1 {Black's knight is trapped.} ) 24.Ne4 {With a winning position for White. The knight on h8 is depressing.} ) 22.Bd5 ( 22.Bxe6 {This move leads to a big advantage without much trouble.} 22...Qxe6 ( 22...fxe6 23.c4 $1 {[%c_effect c4;square;c4;type;GreatFind;persistent;true] Black's king has no safe place to hide.} ) 23.d4 ) 22...Nd8 23.Ra7 $5 {[%c_effect a7;square;a7;type;Interesting;persistent;true] Starting a very creative idea. Aronian is one of my favorite chess players; he has very deep strategic ideas.} ( 23.d4 c6 24.Bb3 $16 ) 23...Nxh4 $1 {[%c_effect h4;square;h4;type;GreatFind;persistent;true] Sevian rightly accepts the complications.} ( 23...O-O 24.Rf5 $1 {[%c_effect f5;square;f5;type;GreatFind;persistent;true] We already know this idea.} 24...Bxf5 25.exf5 Nxh4 ( 25...Nh8 26.Ne4 ) 26.Qf1 {with a winning position.} ) 24.Rxc7 $1 {[%c_effect c7;square;c7;type;GreatFind;persistent;true] A beautiful tribute to Tigran Petrosian, the king of the exchange sacrifice.} 24...Nf3+ ( 24...Qxc7 {Taking the rook immediately is also possible. White has good compensation, but the game remains complicated.} 25.Bxh4 Rh6 26.d4 ) 25.Nxf3 Qxc7 26.Nh4 {White doesn't have even a pawn for the exchange, but his pieces are well placed, and the black king is in danger. It is worth noting the weakness of the dark squares.} 26...Nc6 27.Nf5 $6 {[%c_effect f5;square;f5;type;Inaccuracy;persistent;true] There are better alternatives. Both 27.Rf6 and 27.d4 are very promising.} ( 27.Rf6 Bxd5 28.exd5 Ne7 29.e4 {with excellent compensation.} ) ( 27.d4 ) 27...Bxf5 ( 27...Bxd5 $2 {[%c_effect d5;square;d5;type;Mistake;persistent;true] This is the wrong piece to capture.} 28.exd5 Ne7 29.Ng7+ $1 {[%c_effect g7;square;g7;type;GreatFind;persistent;true]} 29...Kd7 ( 29...Kf8 30.Ne6+ ) 30.Rxf7 {with a decisive attack.} ) 28.Rxf5 h4 $1 {[%c_effect h4;square;h4;type;GreatFind;persistent;true] Another accurate move.} ( 28...Rh7 29.Qf1 $1 {[%c_effect f1;square;f1;type;GreatFind;persistent;true]} 29...h4 30.Bxh4 $1 {[%c_effect h4;square;h4;type;GreatFind;persistent;true] This leads to a pretty win.} 30...Rxh4 31.Rxf7 Ne7 32.Be6 $1 {[%c_effect e6;square;e6;type;GreatFind;persistent;true]} 32...Rh8 33.Qf6 Rg8 34.Rh7 Rf8 35.Qg7 {Despite having an extra rook, Black cannot avoid the threat of 36.Rh8.} ) 29.Rxf7 $6 {[%c_effect f7;square;f7;type;Inaccuracy;persistent;true]} ( 29.Be1 $1 {[%c_effect e1;square;e1;type;GreatFind;persistent;true] is more precise. White still has a dangerous initiative after} 29...g3 30.Qg4 ) 29...Qxf7 30.Bxf7+ Kxf7 31.Be1 h3 $2 {[%c_effect h3;square;h3;type;Mistake;persistent;true] Sevian advances the wrong pawn, and now his position becomes not defendable.} ( 31...g3 $1 {[%c_effect g3;square;g3;type;GreatFind;persistent;true] Black is not worse after this move. White's king is also not very safe now, and a draw is the most likely result. A possible variation is:} 32.Qb3+ Ke7 33.d4 Ra8 $1 {[%c_effect a8;square;a8;type;GreatFind;persistent;true]} 34.Qxb5 Ra1 {with adequate counterplay.} ) 32.Bg3 $1 {[%c_effect g3;square;g3;type;GreatFind;persistent;true] White's king is well protected now, and the bishop becomes active, especially after the move d3-d4. Black's king and pawns, on the other hand, are vulnerable.} ( 32.Qxg4 $2 {[%c_effect g4;square;g4;type;Mistake;persistent;true]} 32...Rbg8 ) 32...Ne7 33.d4 $1 {[%c_effect d4;square;d4;type;GreatFind;persistent;true]} 33...hxg2 34.Kxg2 Rh5 35.Qb3+ Kf6 36.c4 {Black's position breaks into pieces.} 36...Ng6 37.Qb4 Ke6 38.c5 $1 {[%c_effect c5;square;c5;type;GreatFind;persistent;true]} 38...exd4 39.Qb3+ Kf6 40.exd4 Re8 41.cxd6 Rxe4 42.Qc2 Nf4+ 43.Bxf4 Rxf4 44.d7 Rh8 45.Qc8 1-0